[Event "Czech Open-Rapid 2022"]
[Site "Pardubice"]
[Date "2022.07.21"]
[Round "4.7"]
[White "Aradhya, Garg"]
[Black "Luch, Michal"]
[Result "1/2-1/2"]
[ECO "D35"]
[WhiteElo "2229"]
[BlackElo "2375"]
[Annotator "TA"]
[PlyCount "111"]
[EventDate "2022.07.20"]
[EventType "swiss"]
[EventCountry "CZE"]
[SourceTitle "playchess.com"]
[Source "ChessBase"]
[SourceQuality "1"]
[TimeControl "1200+10"]

{[%evp 10,111,12,10,37,38,34,16,19,19,22,8,16,-8,-7,0,20,-19,-2,-21,-23,-33,-18,-42,-8,-72,-31,-91,-60,-72,-66,-83,-2,-106,-94,-122,-59,-38,-41,-35,-27,-89,-110,-240,-251,-240,-155,-142,-135,-231,-214,-277,-8,-8,-8,-10,-6,-226,-226,-222,-224,-532,-219,-213,68,68,112,57,68,68,79,79,120,56,63,68,94,94,80,23,87,0,46,31,31,31,31,31,31,31,31,0,0,0,0,0,0,0,0,0,0,0,0,0]} 1. d4 {[%emt 0:00:02]} d5 {[%emt 0:00:01]} 2. c4 {[%emt 0:00:01]} e6 {[%emt 0:00:00]} 3. Nc3 {[%emt 0:00:01]} Nf6 {[%emt 0:00:01]} 4. cxd5 {[%emt 0:00:02]} exd5 {[%emt 0:00:01]} 5. Bg5 {[%emt 0:00:02]} c6 {[%emt 0:00:01]} 6. e3 {[%emt 0:00:01]} Be6 {[%emt 0:00:03] D35: Queen's Gambit Declined: Exchange Variation.} 7. Bd3 {[%emt 0:00:03]} Nbd7 {[%emt 0:00:02]} 8. Nge2 {[%emt 0:00:10]} h6 {[%emt 0:00:01]} 9. Bh4 {[%emt 0:00:01]} g5 {[%emt 0:00:04] Prevents Nf4.} 10. Bg3 {[%emt 0:00:02]} Nh5 $1 {[%emt 0:00:06]} 11. Qc2 {[%emt 0:00:09]} Nxg3 {[%emt 0:00:02]} 12. hxg3 {[%emt 0:00:22]} Qf6 {[%emt 0:07:28]} 13. f3 {[%emt 0:01:23]} h5 {[%emt 0:00:25]} 14. O-O-O {[%emt 0:00:19]} O-O-O {[%emt 0:00:50]} 15. Kb1 {[%emt 0:01:04]} Kb8 {[%emt 0:00:10] [#]} 16. Qd2 $146 {[%emt 0:00:08]} ({Predecessor:} 16. Rhf1 Qe7 17. Rde1 Bg7 18. f4 gxf4 19. exf4 Bg4 20. Bf5 Qf6 21. Bd3 Rhe8 22. Qd2 {0-1 (74) Vo,T (2380)-Padmini,R (2324) Riadh 2017}) 16... Qe7 {[%emt 0:06:18]} 17. Rh2 (17. g4 $11) 17... Bg7 18. e4 {[%emt 0:04:14]} (18. Rdh1 $15) 18... dxe4 {[%emt 0:00:22]} 19. Nxe4 {[%emt 0:00:02]} f6 {[%emt 0:00:51]} 20. f4 {[%emt 0:00:01]} Bg4 {[%emt 0:03:40]} ({Black should try} 20... g4 $17) 21. fxg5 {[%emt 0:00:22]} (21. Nf2 $1 $11) 21... fxg5 {[%emt 0:00:03][%cal Og7d4]} 22. Qxg5 {[%emt 0:00:05]} Qxg5 {[%emt 0:00:14]} ({Black should play} 22... Rhe8 $17 23. Qxe7 Rxe7) 23. Nxg5 $15 {[%emt 0:00:02] Pair of Knights!} Rde8 $36 {[%emt 0:01:08][%mdl 2048] Black is more active.} 24. Nf3 {[%emt 0:00:08]} Re3 {[%emt 0:00:46]} 25. Kc2 {[%emt 0:01:28]} (25. Rhh1 $11 {remains equal.}) 25... c5 $17 {[%emt 0:00:38][%cal Bc6c5,Bc5d4,Bd4d3][%mdl 32]} 26. Rdh1 {[%emt 0:02:38]} (26. Nf4 $17 {might work better.}) 26... cxd4 $19 {[%emt 0:00:47]} 27. Nf4 {[%emt 0:00:47]} Nc5 {[%emt 0:00:16]} 28. Bg6 {[%emt 0:00:35][%cal Rf4h5]} Rc8 {[%emt 0:00:11] ...Na4+ is the strong threat.} 29. Kb1 {[%emt 0:00:20]} (29. Kd2 $17 {was worth a try.}) 29... d3 $1 {[%emt 0:00:13]} 30. Rd1 {[%emt 0:01:14]} Bxf3 $2 {[%emt 0:00:13]} (30... Na4 $19 31. Rxd3 Re7) 31. gxf3 $11 {[%emt 0:00:01]} Rxf3 {[%emt 0:00:06]} 32. Nxd3 {[%emt 0:00:41]} Rd8 {[%emt 0:00:03]} 33. Rxh5 $2 {[%emt 0:01:40]} Nxd3 $19 {[%emt 0:00:10]} 34. Rh7 {[%emt 0:00:02]} Be5 {[%emt 0:00:20][%cal Of3f2] aiming for ...Rf2!} ({Inferior is} 34... Bxb2 35. Be4 Re3 36. Rxb7+ Kc8 37. Re7 $11) ({Not} 34... Rxg3 35. Bxd3 Rg2 36. b3 $15) 35. g4 $2 {[%emt 0:01:12] [#]} (35. Rxb7+ Kxb7 36. Be4+ Kc7 37. Bxf3) 35... Re3 {[%emt 0:00:09]} (35... Rf2 $142 $1 36. Rxd3 Rxb2+ 37. Kc1 Rc8+ 38. Kd1 Bf4) 36. Re7 {[%emt 0:00:14]} Rd6 {[%emt 0:00:14]} (36... Re1 $1 $19 {[%cal Re1d1]} 37. Rxe1 Nxe1) 37. Bxd3 $14 {[%emt 0:00:25]} a6 {[%emt 0:00:10] [#]} 38. Bc2 {[%emt 0:00:59]} (38. g5 $1 $16) 38... Rxd1+ {[%emt 0:00:04]} 39. Bxd1 {[%emt 0:00:02][%mdl 4096] Endgame KRB-KRB} Re1 {[%emt 0:00:16]} 40. Kc2 {[%emt 0:00:01] And now g5 would win.} Re3 {[%emt 0:00:08]} 41. Bf3 {[%emt 0:00:07]} Rxf3 {[%emt 0:00:04]} 42. Rxe5 {[%emt 0:00:02] KR-KR} Rg3 {[%emt 0:00:03]} 43. Rg5 {[%emt 0:00:06]} Kc7 {[%emt 0:00:16]} 44. a4 {[%emt 0:00:02]} ({Better is} 44. Rg7+ $16 Kd6 45. g5 (45. Rxb7 Rg2+ 46. Kb3 Rxg4 $16)) 44... Kc6 {[%emt 0:00:06] [#]} (44... b5 $1 $11 {keeps the balance.}) 45. b4 {[%emt 0:00:19]} (45. a5 $1 $16) 45... Ra3 {[%emt 0:00:07]} (45... Kd6 $11 {is more appropriate.}) 46. a5 {[%emt 0:00:03]} Rg3 {[%emt 0:00:03]} 47. Rc5+ {[%emt 0:00:38]} Kd6 {[%emt 0:00:02]} 48. Rc4 {[%emt 0:00:01]} Kd5 {[%emt 0:00:10]} 49. Rc7 {[%emt 0:00:08]} Rxg4 {[%emt 0:00:06] ( -> ...Rc4+)} 50. Rxb7 {[%emt 0:00:01]} Kc4 {[%emt 0:00:03] The position is equal.} 51. Rb6 {[%emt 0:00:24]} Rg2+ {[%emt 0:00:07]} 52. Kd1 {[%emt 0:00:01]} Kb3 {[%emt 0:00:15]} 53. Ke1 {[%emt 0:00:49]} Rg4 {[%emt 0:00:14]} 54. Rxa6 {[%emt 0:00:02]} Kxb4 {[%emt 0:00:06]} 55. Ra8 {[%emt 0:00:02]} Kb5 {[%emt 0:00:05]} 56. a6 {Weighted Error Value: White=0.40/Black=0.39} 1/2-1/2

[Event "Czech Open-Rapid 2022"]
[Site "Pardubice"]
[Date "2022.07.21"]
[Round "4.8"]
[White "Kraus, Ondrej"]
[Black "Babula, Vlastimil sr"]
[Result "0-1"]
[ECO "E92"]
[WhiteElo "1993"]
[BlackElo "2556"]
[Annotator "TA"]
[PlyCount "44"]
[EventDate "2022.07.20"]
[EventType "swiss"]
[EventCountry "CZE"]
[SourceTitle "playchess.com"]
[Source "ChessBase"]
[SourceQuality "1"]
[TimeControl "1200+10"]

{[%evp 21,44,-8,-5,-33,-39,-39,-36,-441,-440,-432,-439,-425,-426,-429,-435,-424,-422,-461,-450,-464,-467,-464,-458,-460,-456]} 1. d4 {[%emt 0:00:03]} Nf6 {[%emt 0:00:03]} 2. Nf3 {[%emt 0:00:04]} d6 {[%emt 0:00:07]} 3. c4 {[%emt 0:00:06]} g6 {[%emt 0:00:04]} 4. Nc3 {[%emt 0:00:07]} Bg7 {[%emt 0:00:04]} 5. e4 {[%emt 0:00:23]} O-O {[%emt 0:00:08]} 6. Be2 {[%emt 0:00:57]} e5 {[%emt 0:00:09]} 7. dxe5 {[%emt 0:03:00]} dxe5 {[%emt 0:00:03]} 8. Qxd8 {[%emt 0:00:18]} Rxd8 {[%emt 0:00:02]} 9. Bg5 {[%emt 0:00:28]} c6 {[%emt 0:00:20]} 10. O-O {[%emt 0:00:11]} Re8 {[%emt 0:01:15]} 11. Rad1 {[%emt 0:00:48]} Na6 {[%emt 0:00:26][%cal Bb8a6,Ba6c5,Bc5e4][%mdl 32]} 12. Rd6 {[%emt 0:01:35] E92: King's Indian: Classical: 6 Be2 e5: 7 dxe5, 7 Be3 and Petrosian System without 7...Nbd7.} Be6 {[%emt 0:00:19]} 13. Nxe5 {[%emt 0:02:09]} Nc5 $1 {[%emt 0:00:40] [#]} 14. f4 $146 {[%mdl 8192] [#]} (14. Bxf6 $15 Bxf6 15. f4) ({Predecessor:} 14. Bxf6 Bxf6 15. f4 a5 16. Rfd1 Kf8 17. g3 a4 18. a3 Bxe5 19. fxe5 Ke7 20. Kf2 {0-1 (40) Sakline Mostafa,S (2039)-Nitish,B (2447) Dhaka 2022}) 14... Nfxe4 $19 {[%emt 0:00:14] Black is clearly winning.} 15. Nxe4 {[%emt 0:05:19]} Nxe4 {[%emt 0:00:04]} 16. Rxe6 {[%emt 0:01:29]} Rxe6 {[%emt 0:00:07][%cal Be8e6,Be6e5,Be5e4,Be4c4][%mdl 32]} (16... fxe6 $2 {loses.} 17. Bh4 $19) 17. Bh4 {[%emt 0:00:08]} Bxe5 {[%emt 0:00:21]} 18. fxe5 {[%emt 0:00:04]} Rxe5 {[%emt 0:00:05]} 19. Bd3 {[%emt 0:00:40]} g5 {[%emt 0:00:58]} 20. Be1 {[%emt 0:00:04]} Rd8 {[%emt 0:00:04]} 21. Bxe4 {[%emt 0:00:35]} Rxe4 {[%emt 0:00:04]} 22. Bc3 {[%emt 0:00:20]} Rxc4 {[%emt 0:02:39] Black took control after the opening.  Weighted Error Value: White=0.71/Black=0.00 (flawless)} 0-1

[Event "Czech Open-Rapid 2022"]
[Site "Pardubice"]
[Date "2022.07.21"]
[Round "4.9"]
[White "Plat, Vojtech"]
[Black "Tichy, Stepan"]
[Result "1-0"]
[ECO "C01"]
[WhiteElo "2554"]
[BlackElo "2207"]
[Annotator "TA"]
[PlyCount "67"]
[EventDate "2022.07.20"]
[EventType "swiss"]
[EventCountry "CZE"]
[SourceTitle "playchess.com"]
[Source "ChessBase"]
[SourceQuality "1"]
[TimeControl "1200+10"]

{[%evp 16,67,32,0,2,0,0,0,0,-12,0,0,28,22,35,15,36,29,37,35,34,29,47,33,36,-19,11,9,21,6,15,0,97,18,214,199,200,179,307,260,269,268,263,266,793,779,786,762,1814,1768,29991,29992,29992,29993]} 1. d4 {[%emt 0:02:35]} e6 2. e4 {[%emt 0:00:18]} d5 {[%emt 0:00:14]} 3. exd5 {[%emt 0:00:03]} exd5 {[%emt 0:00:01]} 4. Bd3 {[%emt 0:00:02]} Nf6 {[%emt 0:00:02]} 5. Nf3 {[%emt 0:00:01]} Be7 {[%emt 0:00:17]} 6. h3 {[%emt 0:00:03]} Nc6 {[%emt 0:00:04]} 7. c3 {[%emt 0:00:02][%cal Bc2c3,Bc3c4][%mdl 32]} O-O {[%emt 0:00:03]} 8. O-O {[%emt 0:00:02]} Ne4 {[%emt 0:00:26]} 9. c4 {[%emt 0:02:17]} Nb4 {[%emt 0:01:23] C42: Petroff Defence: 3 Nxe5 and unusual White 3rd moves.} 10. Be2 {[%emt 0:00:01]} Bf5 {[%emt 0:01:11]} 11. a3 {[%emt 0:00:04]} Nc6 {[%emt 0:00:11] The position is equal.} 12. Nc3 {[%emt 0:00:05]} Nxc3 {[%emt 0:01:15]} 13. bxc3 {[%emt 0:00:01]} Bf6 {[%emt 0:00:20]} 14. Bf4 {[%emt 0:00:41]} dxc4 {[%emt 0:01:26]} 15. Bxc4 {[%emt 0:00:04] [#]} Na5 $146 {[%emt 0:00:04]} ({Predecessor:} 15... Qd7 16. Qd2 Rfe8 17. Rfe1 Na5 18. Ba2 Be4 19. Ne5 Bxe5 20. Rxe4 Bxf4 21. Rxf4 Re7 {½-½ (49) Hewitt,W (2053)-Jones,I (2171) Cardiff 2015}) 16. Ba2 {[%emt 0:00:28]} c5 {[%emt 0:00:18]} 17. Rc1 {[%emt 0:03:45]} c4 {[%emt 0:02:23]} 18. Re1 {[%emt 0:00:30]} b5 {[%emt 0:00:47]} 19. Ne5 {[%emt 0:01:46]} Qd5 {[%emt 0:01:17]} 20. g4 {[%emt 0:00:04]} (20. Bb1 $14 Bxb1 21. Rxb1) 20... Bg6 {[%emt 0:00:06]} 21. Nxg6 {[%emt 0:00:35]} fxg6 {[%emt 0:01:29]} 22. Bg3 {[%emt 0:00:11] Prevents Bh4.} Rae8 {[%emt 0:00:28]} 23. Rc2 {[%emt 0:00:47]} Nc6 {[%emt 0:02:05] [#]} (23... Rxe1+ $1 $11 24. Qxe1 Nc6) 24. Rce2 {[%emt 0:00:27]} (24. Rxe8 $1 $16 Rxe8 25. Re2) 24... Kf7 $2 {[%emt 0:02:00] Black cannot hold the game after this.} (24... Rd8 $1 $11) 25. Bb1 $18 {[%emt 0:00:34]} Qd7 {[%emt 0:00:36]} 26. Be4 {[%emt 0:00:34]} Ne7 {[%emt 0:00:43]} (26... Kg8 $142 27. Qb1 Ne7) 27. d5 {[%emt 0:00:52] Black must now prevent d6.} Bxc3 {[%emt 0:00:54]} 28. d6 {[%emt 0:00:09]} Bxe1 {[%emt 0:00:11]} 29. Qxe1 {[%emt 0:00:37]} g5 $2 {[%emt 0:01:13]} (29... Kg8) 30. dxe7 {[%emt 0:00:17]} Rxe7 {[%emt 0:00:02] [#]} 31. Bd5+ $1 {[%emt 0:00:08][%mdl 512] This bishop pair is nice.} Ke8 {[%emt 0:00:03] [#]} (31... Qxd5 32. Rxe7+) 32. Bc6 $1 {[%emt 0:00:14][%mdl 576] White threatens Rxe7+ and mate. Deflection} Qxc6 {[%emt 0:00:20]} (32... Kf7 33. Bxd7) 33. Rxe7+ {[%emt 0:00:01]} Kd8 {[%emt 0:00:01]} 34. Rxa7 {[%emt 0:00:11] Weighted Error Value: White=0.16 (very precise) /Black=0.71} 1-0

[Event "Czech Open-Rapid 2022"]
[Site "Pardubice"]
[Date "2022.07.21"]
[Round "4.10"]
[White "Lalic, Bogdan"]
[Black "Sir, Zbynek"]
[Result "1-0"]
[ECO "A43"]
[WhiteElo "2412"]
[BlackElo "2199"]
[Annotator "TA"]
[PlyCount "53"]
[EventDate "2022.07.20"]
[EventType "swiss"]
[EventCountry "CZE"]
[SourceTitle "playchess.com"]
[Source "ChessBase"]
[SourceQuality "1"]
[TimeControl "1200+10"]

{[%evp 9,53,39,104,106,218,215,355,354,341,350,509,511,507,506,577,487,746,480,475,331,309,307,432,369,369,350,396,405,468,471,456,458,670,648,807,749,1074,1060,1233,1218,1162,1022,1000,951,2106,1833]} 1. d4 {[%emt 0:02:24][%cal Bd2d4,Bd4d5][%mdl 32]} c5 {[%emt 0:00:02]} 2. d5 {[%emt 0:00:07]} b5 {[%emt 0:00:03]} 3. e4 {[%emt 0:00:09]} a6 {[%emt 0:00:03]} 4. a4 {[%emt 0:00:07]} b4 {[%emt 0:00:01]} 5. c4 {[%emt 0:00:07]} bxc3 {[%emt 0:00:03]} ({Better is} 5... d6 $14) 6. Nxc3 $16 {[%emt 0:00:07] [#] A43: Schmid Benoni.} a5 $146 {[%emt 0:00:14]} (6... d6 $16) ({Predecessor:} 6... d6 7. Nf3 g6 8. Nd2 Bg7 9. Nc4 a5 10. Bd3 Na6 11. O-O Nb4 12. f4 Nxd3 13. Qxd3 {1-0 (28) Ilyasli,U (2148)-Novruzov,E (1910) Baku 2019}) 7. Nf3 {[%emt 0:00:20]} d6 {[%emt 0:00:01]} (7... g6 $142 8. Bb5 Bg7) 8. Bb5+ $18 {[%emt 0:00:10] White is winning.} Bd7 {[%emt 0:00:11]} 9. e5 {[%emt 0:00:11]} dxe5 {[%emt 0:00:28]} (9... Bxb5 {was called for.} 10. Nxb5 f6 11. exd6 exd6) 10. Nxe5 {[%emt 0:00:06]} Nf6 {[%emt 0:00:42]} 11. O-O {[%emt 0:00:11]} g6 {[%emt 0:00:30]} 12. Re1 {[%emt 0:00:27]} Ra7 {[%emt 0:07:00]} (12... Bxb5 $142 13. axb5 Bg7) 13. Qf3 {[%emt 0:00:59]} Bg7 {[%emt 0:01:59]} 14. Bxd7+ {[%emt 0:00:16]} Rxd7 {[%emt 0:00:06]} 15. Nxd7 {[%emt 0:00:07]} Qxd7 {[%emt 0:00:11]} (15... Nbxd7 {might work better.} 16. Nb5 O-O) 16. Bf4 {[%emt 0:00:42]} O-O {[%emt 0:00:07]} 17. Rad1 {[%emt 0:00:03]} Qb7 {[%emt 0:00:12]} 18. Qe2 {[%emt 0:00:48]} Nbd7 {[%emt 0:00:39]} 19. Qb5 {[%emt 0:00:15] White is clearly winning.} Qxb5 {[%emt 0:00:28]} 20. axb5 {[%emt 0:00:07]} ({Weaker is} 20. Nxb5 Nb6 21. d6 (21. Rxe7 Nbxd5 22. Bd6 Nxe7 $16) 21... e6 $18) 20... Nb6 {[%emt 0:00:09]} (20... Re8 $142 21. Bc7 Rc8) 21. Rxe7 {[%emt 0:00:15]} Nc4 {[%emt 0:00:02]} 22. Na4 {[%emt 0:01:01]} Nh5 {[%emt 0:00:35]} 23. Bc7 {[%emt 0:00:13]} Nxb2 {[%emt 0:00:08]} 24. Nxb2 {[%emt 0:00:04]} Bxb2 {[%emt 0:00:02]} 25. Re2 {[%emt 0:01:29]} Bd4 {[%emt 0:00:04]} 26. b6 {[%emt 0:00:29]} Nf4 {[%emt 0:00:02]} 27. Bxf4 {Black got outplayed after the opening.  Weighted Error Value: White=0.46/Black=0.81} 1-0

[Event "Czech Open-Rapid 2022"]
[Site "Pardubice"]
[Date "2022.07.21"]
[Round "4.11"]
[White "Schatz, Christian"]
[Black "Rasik, Vitezslav"]
[Result "0-1"]
[ECO "A04"]
[WhiteElo "2137"]
[BlackElo "2419"]
[Annotator "TA"]
[PlyCount "132"]
[EventDate "2022.07.20"]
[EventType "swiss"]
[EventCountry "CZE"]
[SourceTitle "playchess.com"]
[Source "ChessBase"]
[SourceQuality "1"]
[TimeControl "1200+10"]

{[%evp 19,132,18,28,0,-6,-24,-37,-65,-69,-57,-41,-60,-18,-74,-65,-69,-62,-108,-111,-100,-107,-142,-133,-176,-175,-177,-170,-170,-170,-181,-146,-251,-243,-250,-245,-255,-260,-316,-314,-347,-341,-368,-360,-369,-377,-401,-379,-402,-357,-406,-414,-414,-416,-410,-412,-397,-400,-403,-367,-395,0,0,0,-393,-381,-431,-428,-402,-400,-617,-623,-610,-606,-588,-563,-777,-768,-740,-687,-1083,-1052,-1814,-1730,-1472,-1618,-1488,-1291,-7528,-4387,-1945,-1893,-4491,-2661,-12827,-1918,-965,-2445,-1834,-2020,-29975,-29975,-29973,-29974,-29980,-29981,-29982,-29983,-29984,-29985,-29985,-29986,-29985,-29984,-29982,-29983]} 1. Nf3 {[%emt 0:00:02]} d6 {[%emt 0:00:08]} 2. d4 {[%emt 0:00:10]} g6 {[%emt 0:00:08]} 3. g3 {[%emt 0:00:09]} Bg7 {[%emt 0:00:05]} 4. Bg2 {[%emt 0:00:03]} Nf6 {[%emt 0:00:03]} 5. O-O {[%emt 0:00:07]} O-O {[%emt 0:00:05]} 6. b3 {[%emt 0:00:11]} c5 {[%emt 0:00:30]} 7. Bb2 {[%emt 0:00:48]} cxd4 {[%emt 0:00:05]} 8. Nxd4 {[%emt 0:00:03]} d5 {[%emt 0:00:07]} 9. c4 {[%emt 0:00:34]} dxc4 {[%emt 0:00:10]} 10. bxc4 {[%emt 0:00:10]} Qb6 {[%emt 0:00:12]} 11. Qb3 {[%emt 0:00:25][%cal Ob1c3] A49: 1 d4 Nf6 2 Nf3 g6 3 g3: Anti-King's Indian systems.} Nfd7 {[%emt 0:00:16][%cal Bf6d7,Bd7b6,Bb6c4][%mdl 32] [#]} 12. Qxb6 $146 {[%emt 0:03:06]} ({Predecessor:} 12. Rd1 Nc6 13. e3 Na5 14. Qc2 Nc5 15. Nd2 Bg4 16. Rdb1 Rac8 17. h3 Bd7 18. Ba3 Qa6 19. N2b3 b6 20. Bf1 e5 21. Nxc5 bxc5 {1-0 (68) Hansen,E (2606)-Wagner,D (2576) Chess.com INT 2021}) 12... Nxb6 {[%emt 0:00:21]} 13. e3 {Black is slightly better.} Nxc4 {[%emt 0:00:18]} 14. Bc3 {[%emt 0:02:05]} Na6 {[%emt 0:00:38]} 15. Nb5 {[%emt 0:00:45]} Na5 {[%emt 0:02:55]} 16. Bxg7 {[%emt 0:01:24]} (16. Nd4 $11 {remains equal.} Nc4 17. Nd2 Nxd2 18. Bxd2) 16... Kxg7 $17 {[%emt 0:00:04]} 17. N1a3 {[%emt 0:01:12]} Bd7 {[%emt 0:00:47]} 18. Rfd1 {[%emt 0:01:12]} (18. Rfc1 $15 {should be considered.}) 18... Bc6 {[%emt 0:01:59]} 19. Bxc6 {[%emt 0:00:38]} Nxc6 {[%emt 0:02:09]} 20. Rd7 {[%emt 0:00:40]} Nc5 {[%emt 0:00:35]} 21. Rd2 {[%emt 0:00:51]} Rfd8 {[%emt 0:00:37]} 22. Rad1 {[%emt 0:00:59]} Rxd2 {[%emt 0:00:16]} 23. Rxd2 {[%emt 0:00:01]} a6 {[%emt 0:00:33]} 24. Nd4 {[%emt 0:00:17]} Rd8 {[%emt 0:00:32]} 25. Nc4 {[%emt 0:00:21]} (25. Rc2 $17 Nxd4 26. Rxc5) 25... Nxd4 $1 $19 {[%emt 0:02:20]} 26. exd4 {[%emt 0:00:34][%mdl 4096] Endgame KRN-KRN} Ne4 {[%emt 0:00:41]} 27. Rd3 {[%emt 0:00:34] [#]} Rc8 $1 {[%emt 0:00:26]} 28. Ne3 {[%emt 0:01:40]} Rc3 {[%emt 0:00:46]} 29. Rd1 {[%emt 0:00:21]} Ra3 {[%emt 0:00:19]} 30. Rb1 {[%emt 0:00:24]} b5 {[%emt 0:00:48][%cal Bb7b5,Bb5b4][%mdl 32]} 31. Rb2 {[%emt 0:00:05]} Nc3 {[%emt 0:00:35]} 32. Rc2 {[%emt 0:01:09]} b4 {[%emt 0:01:22]} 33. Rb2 {[%emt 0:00:31]} a5 {[%emt 0:00:35]} 34. Nc4 {[%emt 0:00:06]} Rxa2 {[%emt 0:01:09]} 35. Rxa2 {[%emt 0:00:08]} Nxa2 {[%emt 0:00:02]} 36. Nxa5 {[%emt 0:00:02] KN-KN} Kf6 {[%emt 0:00:40]} 37. Kf1 {[%emt 0:00:18]} Ke6 {[%emt 0:00:19]} 38. Ke2 {[%emt 0:00:07]} Kd5 {[%emt 0:00:21]} 39. Kd3 {[%emt 0:00:08]} Nc1+ {[%emt 0:00:08]} 40. Kd2 {[%emt 0:00:31]} Na2 {[%emt 0:00:02]} ({Don't take} 40... Kxd4 41. Kxc1 Ke4 42. Kd2 $14) 41. Kd3 {[%emt 0:00:07] Black converts the advantage convincingly.} Nc3 {[%emt 0:00:14]} 42. Nc4 {[%emt 0:00:18]} Nd1 {[%emt 0:00:17]} 43. Nb6+ {[%emt 0:00:26]} Kc6 {[%emt 0:00:02]} 44. Nc4 {[%emt 0:00:07]} (44. Nc8 $142 Nxf2+ 45. Kc4) 44... Nxf2+ {[%emt 0:00:10]} 45. Ke2 {[%emt 0:00:16]} Ng4 {[%emt 0:00:16]} 46. h3 {[%emt 0:00:05]} Nf6 {[%emt 0:00:09]} 47. Ne5+ {[%emt 0:00:02]} Kd5 {[%emt 0:00:11]} 48. Kd3 {[%emt 0:00:02]} Nh5 {[%emt 0:00:35]} 49. Nxf7 {[%emt 0:00:06]} Nxg3 {[%emt 0:00:09]} 50. Ng5 {[%emt 0:00:08]} h6 {[%emt 0:00:11]} 51. Nf3 {[%emt 0:00:06]} Nf5 {[%emt 0:00:03]} 52. Ne5 {[%emt 0:00:12]} g5 {[%emt 0:00:21]} 53. Nf7 {[%emt 0:00:06]} e6 {[%emt 0:00:30]} 54. Ne5 {[%emt 0:00:27]} Nxd4 {[%emt 0:00:05]} 55. Nd7 {[%emt 0:00:02]} Nf5 {[%emt 0:00:19] Hoping for ...Kd6.} 56. Nb6+ {[%emt 0:00:06]} Kc5 {[%emt 0:00:19]} 57. Nd7+ {[%emt 0:00:05]} Kd6 {[%emt 0:00:08]} 58. Nf6 {[%emt 0:00:03]} Ke5 {[%emt 0:00:12]} 59. Nd7+ {[%emt 0:00:25] [#]} Kf4 $1 {[%emt 0:00:02] Black mates.} 60. Kc4 {[%emt 0:00:02]} Kg3 {[%emt 0:00:13]} 61. Kxb4 {[%emt 0:00:01]} Kxh3 {[%emt 0:00:02]} 62. Kc4 {[%emt 0:00:02]} g4 {[%emt 0:00:06][%cal Bg5g4,Bg4g3,Bg3g2][%mdl 32]} 63. Kd3 {[%emt 0:00:07]} g3 {[%emt 0:00:02]} 64. Ne5 {[%emt 0:00:06]} g2 {[%emt 0:00:06]} 65. Nf3 {[%emt 0:00:03]} Nh4 {[%emt 0:00:05]} 66. Ng1+ {[%emt 0:00:08]} Kh2 {[%emt 0:00:02] Weighted Error Value: White=0.48/Black=0.14 (very precise)} 0-1